Cogmind - Beta 10.1 @@@ ROGUE MODE // 2020.10.14 @ 18:51:02 // Winter2019/RPGLIKE Player: Hermelin Result: Destroyed by 8R-AWN with 8R-AWN's Boregun Performance ------------- Evolutions (1) 500 Regions Visited (5) 1000 Robots Destroyed (69) 345 Value Destroyed (1277) 1277 Prototype IDs (44) 880 Alien Tech Used (0) 0 Bonus (44) 44 TOTAL SCORE: 4046 Bonus ------- High Alert Combat Kills 55 Follower Combat Kills 92 Aligned with FarCom 300 Friendly Fire -403 Cogmind --------- Core Integrity 0/750 Matter 256/300 Energy 28/350 System Corruption 0% Temperature Cool (14) Movement Treading (160) Location -9/Exiles Parts ------- > --- POWER (2) -------- Ion Engine > --- PROPULSION (3) --- Light Treads Light Treads Light Treads > --- UTILITY (6) ------ Cooling System Small Battery Improved Light Armor Plating Improved Medium Armor Plating Reactive Plating Shield Generator > --- WEAPON (3) ------- Improved EM Shotgun Improved EM Shotgun EMP Blaster > --- INVENTORY (4) ---- Improved Trap Extractor Improved EM Shotgun Datajack Peak State ------------ > --- POWER ------------ Ion Engine Light Deuterium Engine > --- PROPULSION ------- Light Treads Light Treads Light Treads > --- UTILITY ---------- Cooling System Improved Light Armor Plating Improved Medium Armor Plating Reactive Plating Shield Generator Improved Trap Extractor > --- WEAPON ----------- Improved EM Shotgun Improved EM Shotgun Improved EM Shotgun > --- INVENTORY -------- Nuclear Core Reinforced Deuterium Engine EMP Blaster Datajack [Rating: 35] Favorites ----------- Power Light Deuterium Engine Engine Light Deuterium Engine Propulsion Light Treads Treads Light Treads Utility Reactive Plating Device Improved Terrain Scanner Storage Small Battery Processor Seismic Analyzer Hackware Hacking Suite Protection Reactive Plating Weapon Improved EM Shotgun Energy Gun Improved EM Shotgun Ballistic Gun Assault Rifle Launcher EMP Blaster Special Melee Weapon Datajack Build | -11 -10 -10 -9 -9 -9 ------- Run | Scr Mat Min Mat Min Exi Slots Evolved 10 | 3 3 1 3 . . Power 1 | . . . 1 . . Propulsion 2 | 1 1 . . . . Utility 5 | 1 2 . 2 . . Weapon 2 | 1 . 1 . . . Parts Attached 50 | 7 10 9 19 2 3 Power 3 | 1 . 1 1 . . Engine 3 | 1 . 1 1 . . Core . | . . . . . . Reactor . | . . . . . . Propulsion 3 | 2 1 . . . . Treads 3 | 2 1 . . . . Leg . | . . . . . . Wheel . | . . . . . . Hover . | . . . . . . Flight . | . . . . . . Utility 17 | 2 3 2 7 2 1 Device 6 | 1 . . 5 . . Storage 1 | . . . . . 1 Processor 1 | 1 . . . . . Hackware 1 | . . . 1 . . Protection 8 | . 3 2 1 2 . Artifact . | . . . . . . Weapon 27 | 2 6 6 11 . 2 Energy Gun 12 | 1 1 2 8 . . Energy Cannon . | . . . . . . Ballistic Gun 5 | 1 3 1 . . . Ballistic Cannon . | . . . . . . Launcher 9 | . 2 3 3 . 1 Special Weapon . | . . . . . . Impact Weapon . | . . . . . . Slashing Weapon . | . . . . . . Piercing Weapon . | . . . . . . Special Melee Weapon 1 | . . . . . 1 Unidentified Prototypes . | . . . . . . Parts Lost . | . . . . . . Power . | . . . . . . Propulsion . | . . . . . . Utility . | . . . . . . Weapon . | . . . . . . Highest Loss Streak . | . . . . . . Average Slot Usage (%) 99 | . 98 99 99 100 99 Engine 12 | . 11 9 12 14 13 Treads 24 | . 30 28 23 21 21 Device 16 | . 11 9 15 27 18 Hackware 1 | . . . 5 . . Protection 19 | . 14 28 17 14 21 Energy Gun 17 | . 11 15 23 21 14 Ballistic Gun 2 | . 11 3 . . . Launcher 1 | . . 3 . . 4 Naked Turns . | . . . . . . Heaviest Build 47 | 8 23 37 45 46 47 Greatest Support 65 | 25 65 65 65 65 65 Greatest Overweight (x) 1 | . 1 . . . . Average Overweight (x) . | . . . . . . Largest Inventory Capacity 4 | 2 2 3 4 4 4 Average Capacity 3 | 1 2 2 3 4 4 Most Carried 4 | 1 2 3 4 4 4 Average Carried 2 | . 1 2 3 4 2 Final Capacity 4 | 2 2 3 4 4 4 Final Carried 4 | 1 2 3 4 4 3 Class Distribution -------------------- 55% | Mutant 29% | Tank 14% | Hacker-Tank Dominant Class ---------------- Mutant | -10/Materials Mutant | -10/Mines Hacker-Tank | -9/Materials Tank | -9/Mines Mutant | -9/Exiles Resources | -11 -10 -10 -9 -9 -9 ----------- Run | Scr Mat Min Mat Min Exi Matter Collected 1020 | 294 253 209 174 60 30 Remotely . | . . . . . . Salvage Created 1740 | 83 577 314 445 302 19 Parts 127 | 4 60 13 34 16 . Haulers Intercepted 2 | . . . 2 . . Recyclers Shooed . | . . . . . . Parts Field Recycled . | . . . . . . Retrieved Matter . | . . . . . . Parts Self-Destructed . | . . . . . . Prevented . | . . . . . . Kills | -11 -10 -10 -9 -9 -9 ------- Run | Scr Mat Min Mat Min Exi Combat Hostiles Destroyed 48 | . 19 8 12 5 4 Guns 25 | . 13 2 5 5 . AOE 22 | . 6 5 7 . 4 Classes Destroyed 11 | 2 5 . 3 1 . Worker 1 | . . . 1 . . Builder 4 | . 4 . . . . Tunneler 2 | 1 . 1 . . . Hauler 2 | . . . 2 . . Recycler 6 | 1 1 . . 4 . Operator 3 | . 1 . 2 . . Watcher 2 | . 2 . . . . Swarmer 19 | . 6 5 5 3 . Grunt 20 | . 13 2 4 1 . Sentry 3 | . . . 3 . . Assembled 6 | . . . . 1 5 Best Kill Streak 10 | 2 10 4 4 3 4 Combat Bots Only 6 | . 6 4 4 3 4 Max Kills in Single Turn 4 | 1 4 2 3 1 3 Gunslinging . | . . . . . . Exploded 3 | . 2 2 3 . 3 Melee . | . . . . . . Uniques/NPCs Destroyed 1 | . . 1 . . . YI-UF0 (-10/Mines) Combat | -11 -10 -10 -9 -9 -9 -------- Run | Scr Mat Min Mat Min Exi Damage Taken 2641 | 32 399 762 272 56 1120 Core 1768 | 25 298 500 165 34 746 Absorbed by Shields 171 | . . . 75 22 74 Redirected to Core 1544 | 25 244 407 156 34 678 Core Remaining (%) 71 | 95 . 47 . . . Volleys Fired 149 | 8 44 24 34 15 24 Largest 3 | 2 2 2 3 3 2 Hottest 164 | 60 60 103 164 135 90 Shots Fired 305 | 16 85 40 82 45 37 Gun 277 | 16 82 32 76 45 26 Cannon . | . . . . . . Launcher 28 | . 3 8 6 . 11 Special . | . . . . . . Kinetic 62 | 8 41 13 . . . Thermal 45 | . . 3 42 . . Explosive 11 | . 3 8 . . . Electromagnetic 187 | 8 41 16 40 45 37 Robot Hit Streak 19 | 6 8 12 11 19 14 Robot Miss Streak 6 | 6 4 3 6 2 5 Penetration Max . | . . . . . . Secondary Targets 3 | . 2 . . 1 . Max Gunslinging Chain 1 | . 1 . . 1 . Shots Hit Robots 196 | 8 56 23 52 26 31 Core Hits 115 | 3 39 17 28 15 13 Critical Hits . | . . . . . . Critical Kills . | . . . . . . Critical Parts Destroyed . | . . . . . . Melee Attacks 5 | . . . . . 5 Impact . | . . . . . . Slashing . | . . . . . . Piercing . | . . . . . . Sneak Attacks 4 | . . . . . 4 Combat Hostiles . | . . . . . . Follow-up Attacks . | . . . . . . Damage Inflicted 4320 | 173 1367 736 1338 306 400 Guns 2339 | 106 809 285 816 306 17 Cannons . | . . . . . . Explosions 1981 | 67 558 451 522 . 383 Melee . | . . . . . . Ramming . | . . . . . . Kinetic 484 | 51 354 79 . . . Thermal 1010 | 67 217 111 546 . 69 Explosive 973 | . 341 394 238 . . Electromagnetic 1853 | 55 455 152 554 306 331 Impact . | . . . . . . Slashing . | . . . . . . Piercing . | . . . . . . Highest Corruption . | . . . . . . Average Corruption . | . . . . . . Corruption Purged . | . . . . . . Overload Shots . | . . . . . . Overflow Damage 168 | . 78 . 78 . 12 Projectiles . | . . . . . . Explosions 168 | . 78 . 78 . 12 Melee . | . . . . . . Knockbacks . | . . . . . . Impact . | . . . . . . Kinetic . | . . . . . . Secondary . | . . . . . . Self-Inflicted Damage 263 | 32 42 48 79 . 62 Shots 8 | 1 2 1 1 . 3 Rammed . | . . . . . . Targets Rammed . | . . . . . . Kicked . | . . . . . . Crushed . | . . . . . . Highest Temperature 296 | 12 163 209 296 24 21 Average Temperature 73 | 12 43 106 103 11 13 Received Heat Transfer 241 | . 135 24 78 4 . Siege Activations . | . . . . . . Robots Corrupted 1 | . . 1 . . . Combat Hostiles 1 | . . 1 . . . Parts Fried 4 | . 1 1 1 1 . Impact Corruptions . | . . . . . . Robots Melted . | . . . . . . Combat Hostiles . | . . . . . . Parts Melted 4 | . . 1 3 . . Heat Transferred 1651 | 100 150 211 1090 . 100 Parts Sabotaged . | . . . . . . Parts Stolen . | . . . . . . Parts Stripped . | . . . . . . Power Chain Reactions 11 | 1 2 1 6 . 1 Missiles Intercepted . | . . . . . . Alert | -11 -10 -10 -9 -9 -9 ------- Run | Scr Mat Min Mat Min Exi Peak Influence 639 | 10 639 259 345 80 . Initial 184 | . 6 184 21 9 . Average 159 | 2 437 130 152 17 . Maximum Alert Level 2 | . 2 1 1 . . Low Security (%) 74 | 100 18 79 79 100 . Level 1 13 | . 13 20 20 . . Level 2 12 | . 67 . . . . Level 3 . | . . . . . . Level 4 . | . . . . . . Level 5 . | . . . . . . High Security . | . . . . . . Max Security . | . . . . . . Squads Dispatched 13 | . 6 . 6 1 . Investigation 10 | . 5 . 4 1 . Extermination . | . . . . . . Reinforcement 3 | . 1 . 2 . . Assault . | . . . . . . Garrison . | . . . . . . Intercept . | . . . . . . Construction Impeded . | . . . . . . Haulers Reinforced . | . . . . . . Stealth | -11 -10 -10 -9 -9 -9 --------- Run | Scr Mat Min Mat Min Exi Distress Signals 1 | . . . . 1 . Communications Jammed . | . . . . . . Distress Signals . | . . . . . . Times Spotted 79 | . 28 10 28 6 7 Peak Tracking Total 8 | . 5 3 4 3 8 Tactical Retreats 5 | . 1 1 2 1 . Traps | -11 -10 -10 -9 -9 -9 ------- Run | Scr Mat Min Mat Min Exi Traps Triggered 2 | . . . 2 . . Indirectly 1 | . . . 1 . . Trap Hack Attempts . | . . . . . . Triggered . | . . . . . . Disarmed . | . . . . . . Reprogrammed 2 | . . . 2 . . Reused 2 | . . . . . 2 Traps Extracted 2 | . . . 2 . . Installed 2 | . . . . . 2 Triggered . | . . . . . . Machines | -11 -10 -10 -9 -9 -9 ---------- Run | Scr Mat Min Mat Min Exi Machines Disabled 13 | . 4 1 4 . 4 Max in Single Turn 2 | . 2 1 1 . 2 Machines Sabotaged . | . . . . . . Garrisons Compromised . | . . . . . . Overloaded Fab Kills . | . . . . . . Fab Network Shutdowns . | . . . . . . Hacking | -11 -10 -10 -9 -9 -9 --------- Run | Scr Mat Min Mat Min Exi Machines Accessed 23 | . 9 1 10 1 2 Terminals 14 | . 7 . 7 . . Fabricators . | . . . . . . Repair Stations . | . . . . . . Recycling Units 3 | . 2 . 1 . . Scanalyzers 2 | . . . 2 . . Garrison Access . | . . . . . . Total Hacks 95 | . 49 1 42 1 2 Successful 67 | . 34 1 29 1 2 Failed 26 | . 14 . 12 . . Catastrophic . | . . . . . . Database Lockouts 2 | . 1 . 1 . . Manual 62 | . 39 . 22 . 1 Terminals 76 | . 44 . 32 . . Fabricators . | . . . . . . Repair Stations . | . . . . . . Recycling Units 7 | . 5 . 2 . . Scanalyzers 8 | . . . 8 . . Garrison Access . | . . . . . . Terminal Hacks 34 | . 18 1 12 1 2 Record 1 | . . . . . 1 Robot Schematic 2 | . 2 . . . . Robot Analysis 7 | . 5 . 2 . . Prototype ID Bank 5 | . 3 . 2 . . Open Door 2 | . . 1 . 1 . Branch Access Points 2 | . 1 . 1 . . Emergency Access Points 1 | . 1 . . . . Terminal Index 1 | . 1 . . . . Recycling Unit Index 1 | . . . 1 . . Alert Level 1 | . 1 . . . . Unreport Threat 1 | . . . 1 . . Locate Traps 2 | . 1 . 1 . . Reprogram Traps 1 | . . . 1 . . Hauler Manifests 2 | . 1 . 1 . . Registered Components 1 | . . . 1 . . Zone Layout 3 | . 2 . 1 . . EX-Prototype ID Bank 1 | . . . . . 1 Fabricator Hacks . | . . . . . . Repair Station Hacks . | . . . . . . Recycling Unit Hacks 4 | . 3 . 1 . . Report Inventory 3 | . 2 . 1 . . Retrieve Components 1 | . 1 . . . . Scanalyzer 8 | . . . 8 . . Insert Component 4 | . . . 4 . . Analyze 4 | . . . 4 . . Garrison Access Hacks . | . . . . . . Unauthorized Hacks 21 | . 13 . 8 . . Terminals 18 | . 11 . 7 . . Track 7 | . 4 . 3 . . Assimilate 1 | . 1 . . . . Botnet 6 | . 3 . 3 . . Disrupt 2 | . 2 . . . . Operators 2 | . 1 . 1 . . Fabricators . | . . . . . . Repair Stations . | . . . . . . Recycling Units 3 | . 2 . 1 . . Tunnel 3 | . 2 . 1 . . Scanalyzers . | . . . . . . Garrison Access . | . . . . . . Data Cores Recovered . | . . . . . . Used . | . . . . . . Hacking Detections 15 | . 7 . 8 . . Full Trace Events 5 | . 3 . 2 . . Feedback Events . | . . . . . . Feedback Blocked . | . . . . . . Robot Schematics Acquired 2 | . 2 . . . . Robots Built . | . . . . . . Matter . | . . . . . . Time . | . . . . . . Total Robot Build Rating . | . . . . . . Part Schematics Acquired 4 | . . . 4 . . Parts Built . | . . . . . . Matter . | . . . . . . Time . | . . . . . . Total Part Build Rating . | . . . . . . Parts Repaired . | . . . . . . Time . | . . . . . . Parts Recycled . | . . . . . . Recycled Matter . | . . . . . . Retrieved Matter . | . . . . . . Retrieved Components 2 | . 2 . . . . Parts Scanalyzed 4 | . . . 4 . . Part Schematics Acquired 4 | . . . 4 . . Parts Damaged . | . . . . . . Bothacking | -11 -10 -10 -9 -9 -9 ------------ Run | Scr Mat Min Mat Min Exi Used RIF Installer . | . . . . . . Robots Hacked 4 | . . . . . 4 Non-combat 3 | . . . . . 3 Combat 1 | . . . . . 1 Robot Hacks Applied 4 | . . . . . 4 parse_system 4 | . . . . . 4 Relay Couplers Released . | . . . . . . Robots Rewired . | . . . . . . Allies Hacked . | . . . . . . Hacks Repelled . | . . . . . . Allies | -11 -10 -10 -9 -9 -9 -------- Run | Scr Mat Min Mat Min Exi Total Allies 4 | . 1 3 . . . Largest Group 3 | . 1 3 3 . . Highest-Rated Group 40 | . 10 40 40 . . Highest-Rated Ally 16 | . 10 16 16 . . Total Orders . | . . . . . . Ally Attacks 23 | . . 3 20 . . Total Damage 229 | . . 18 211 . . Kills 4 | . . 1 3 . . Allies Corrupted . | . . . . . . Allies Melted . | . . . . . . Intel | -11 -10 -10 -9 -9 -9 ------- Run | Scr Mat Min Mat Min Exi Robot Analysis Total 7 | . 5 . 2 . . Derelict Logs Recovered 4 | . . 2 . 2 . Drone Launches . | . . . . . . Drone Recoveries . | . . . . . . Exploration | -11 -10 -10 -9 -9 -9 ------------- Run | Scr Mat Min Mat Min Exi Turns Passed 5575 | 69 803 1188 1203 1179 1133 Spaces Moved 3208 | 50 652 675 629 567 635 Core 457 | 47 410 . . . . Treads 2751 | 3 242 675 629 567 635 Legs . | . . . . . . Wheels . | . . . . . . Hover . | . . . . . . Flight . | . . . . . . Fastest Speed 50 | 50 50 160 160 160 160 Average Speed 144 | 56 91 160 160 160 160 Slowest Speed 160 | 160 160 160 160 160 160 Overloaded Moves . | . . . . . . Propulsion Burnouts . | . . . . . . Robots Hopped . | . . . . . . Cave-ins Triggered . | . . . . . . Exploration Rate (%) 69 | 5 96 98 50 96 69 Regions Visited 5 Branch Regions 3 Pre-discovered Areas 7 | . 2 1 1 2 1 Known Exits Taken 2 | . 1 . 1 . . Unknown Exits Taken 3 | 1 . 1 . 1 . Scrap Searched 3 | . . 2 . 1 . Spaces Dug . | . . . . . . Terrain Destroyed 102 | . 42 28 31 . 1 Melee . | . . . . . . Projectile . | . . . . . . AOE 102 | . 42 28 31 . 1 Terrain Rammed . | . . . . . . Walls Destroyed . | . . . . . . Machines Disabled . | . . . . . . Actions | -11 -10 -10 -9 -9 -9 --------- Run | Scr Mat Min Mat Min Exi Total 3873 | 70 779 744 760 806 714 Wait 324 | 5 32 17 26 215 29 Move 3203 | 49 651 674 628 566 635 Hop . | . . . . . . Pick Up 28 | 1 7 6 7 . 7 Fast Attach 20 | 7 5 2 4 1 1 Attach 5 | . 1 1 3 . . Detach . | . . . . . . Swap 25 | . 4 6 12 1 2 Drop 36 | . 8 8 9 2 9 Fire 149 | 8 44 24 34 15 24 Melee 5 | . . . . . 5 Ram . | . . . . . . Kick . | . . . . . . Crush . | . . . . . . Escape Stasis . | . . . . . . Rewire . | . . . . . . Trap 2 | . . . . . 2 Miscellaneous 76 | . 27 6 37 6 . Route ------- -11/Scrapyard -10/Materials (discovered 4 exits: *Mat x3 / *Min) -10/Mines (discovered 2 exits: *Mat x2) -9/Materials (discovered 2 exits: [*Mat] / *Min) -9/Mines (discovered 3 exits: [*Mat x2] / *Exi) -9/Exiles (discovered 1 exit: [*Min]) History --------- Turn | Location | Event 2 | -11/Scrapyard | Upgraded with Propulsion slot (x1) 2 | -11/Scrapyard | Upgraded with Utility slot (x1) 2 | -11/Scrapyard | Upgraded with Weapon slot (x1) 10 | -11/Scrapyard | Discovered new exit (range 17) 70 | -11/Scrapyard | Entered Materials 89 | -10/Materials | Discovered new exit (range 11) 117 | -10/Materials | Identified exit to Mines 219 | -10/Materials | Discovered new exit (range 16) 308 | -10/Materials | Build established: Mutant 328 | -10/Materials | Reached level 2 332 | -10/Materials | Upgraded with Propulsion slot (x1) 332 | -10/Materials | Upgraded with Utility slot (x1) 416 | -10/Materials | Central database locked down 559 | -10/Materials | Discovered new exit (range 16) 634 | -10/Materials | Discovered new exit (range 12) 652 | -10/Materials | Reached level 3 667 | -10/Materials | Upgraded with Utility slot (x1) 873 | -10/Materials | Entered Mines 1078 | -10/Mines | Destroyed YI-UF0 1091 | -10/Mines | Core integrity fell below 50% 1129 | -10/Mines | Discovered new exit (range 15) 1227 | -10/Mines | Learned location of Zion (-6) 1230 | -10/Mines | Met a Derelict who couldn't figure out how to use a Trap Extractor 1327 | -10/Mines | Discovered new exit (range 11) 1419 | -10/Mines | Assisted by bots powering up and referring to "LRC-V3" 1606 | -10/Mines | Reached level 4 1610 | -10/Mines | Upgraded with Weapon slot (x1) 1747 | -10/Mines | Learned Materials stockpile data 2061 | -10/Mines | Entered Materials 2061 | -9/Materials | Accompanied by 3 allies 2062 | -9/Materials | Core integrity fell below 50% 2063 | -9/Materials | Reached level 5 2063 | -9/Materials | Upgraded with Utility slot (x1) 2407 | -9/Materials | Reached level 6 2410 | -9/Materials | Upgraded with Power slot (x1) 2410 | -9/Materials | Discovered new exit (range 17) 2630 | -9/Materials | Build established: Hacker-Tank 2852 | -9/Materials | Identified exit to Mines 2905 | -9/Materials | Central database locked down 2998 | -9/Materials | Reached level 7 3226 | -9/Materials | Upgraded with Utility slot (x1) 3264 | -9/Materials | Entered Mines 3275 | -9/Mines | Assembled infested the area 3277 | -9/Mines | Met a Derelict shopkeep closing up shop 3398 | -9/Mines | Build established: Tank 3583 | -9/Mines | A weapon hastily lodged in a ceiling crevice suddenly fell to the ground 3634 | -9/Mines | Discovered new exit (range 13) 3902 | -9/Mines | Learned Materials emergency access door positions 3968 | -9/Mines | Deemed a non-threat by the Exiles lab entrance 3968 | -9/Mines | Discovered new exit (range 5) 4069 | -9/Mines | Received a Rocket Launcher from a helpful Derelict 4096 | -9/Mines | Discovered new exit (range 16) 4120 | -9/Mines | Learned location of Storage (-8) 4443 | -9/Mines | Entered Exiles 4464 | -9/Exiles | Discovered new exit (range 16) 4525 | -9/Exiles | Met 8R-AWN 4582 | -9/Exiles | Met EX-HEX 4642 | -9/Exiles | Met EX-DEC 4718 | -9/Exiles | Met EX-BIN 4746 | -9/Exiles | Aligned with FarCom system 4747 | -9/Exiles | Given EX-Vault access code 4786 | -9/Exiles | Opened EX-Vault 4854 | -9/Exiles | Build established: Mutant 4864 | -9/Exiles | Warned to stay clear of 0b10 Research branches 5487 | -9/Exiles | Attacked by the Exiles 5551 | -9/Exiles | Core integrity fell below 20% 5576 | -9/Exiles | Destroyed by 8R-AWN with 8R-AWN's Boregun Last Messages --------------- 05532_ Penetrated by HV Slug. 05534_ HV Slug penetrates Wall. 05534_ HV Slug penetrates Earth. 05535_ as-35623 misfires. 05536_ Penetrated by HV Slug. 05539_ HV Slug penetrates Wall. 05541_ Critical hit. 05541_ Penetrated by HV Slug. 05543_ HV Slug penetrates as-65053. 05543_ as-65053 suffers critical hit. 05543_ as-65053 destroyed. 05543_ HV Slug penetrates Wall. 05543_ Penetrated by HV Slug. 05546_ Critical hit. 05551_ Penetrated by HV Slug. 05556_ Protomatter-8 decays. 05559_ Penetrated by HV Slug. 05572_ Critical hit. 05576_ Penetrated by HV Slug. 05576_ Critical hit. Map ----- +----------------------------------------------------+ | """#???????????????????????????????????? | | """#???????????????????????????????????? | | """#???????????????????????????????????? | | """##??????????????????????????????????? | | """""??????????????????????????????????? | | """##??????????????????????????????????? | | "X" """"???????????????????????????????????? | | """ #???????????????????????????????????? | | """""""""#???????????????????????????????????? | | ###########???????????????????????????????????? | | #?????????????????????????????????????????????? | | #?????????????????????????????????????????????? | | ##????????????????????????????????????????????? | | ##???###########?????????????????????????????? | | #####"""" """"##????????????????????????????? | | " """ """"##???????????????????????????? | | " #???????????????????????????? | | """#???????????????????????????? | | a"#???????????#####???????????? | | " "##?????????##" #???????????? | | "###???????#" #???????????? | | " ""#??????##"^ ##??????????? | | """ ##?##### ###????????# | | ####""" % ## ## ########## | | ???##""" #;### #""""## | | ????#"""" %@###^ | | ???##"" g ## | | ####"""" #### | | #""" ""#?#"""""#### | | "" #"""##?#######??#### | | ######??????????????### | | a ##?????????????????????? | | ##??????????????????????? | | "" #???????????????????????? | | ##""" " " # % % ##???????????????????????? | | ######""" """## ##????????????????????????? | | #????###""""###########?????????????????????????? | | ####???######???????????????????????????????????? | | "!#????????????????????????????????????????????? | | !#????????????????????????????????????????????? | | "#????????????????????????????????????????????? | | ""!"#????????????????????????????????????????????? | | #####????????????????????????????????????????????? | | ?????????????????????????????????????????????????? | | ?????????????????????????????????????????????????? | | ?????????????????????????????????????????????????? | | ?????????????????????????????????????????????????? | | ?????????????????????????????????????????????????? | | ?????????????????????????????????????????????????? | | ?????????????????????????????????????????????????? | +----------------------------------------------------+ Best States ------------- Heat Dissipation 59 Energy Generation 19 Energy Capacity 390 Matter Stores 300 Matter Capacity 300 Sight Range 17 Terrain Scan Range 16 Terrain Scan Density 160 Armor Coverage 675 Resistance: KI 20 Evasion (%) 50 Recoil Reduction 3 Offensive Hacking 15 Defensive Hacking 5 Item Schematics ----------------- Imp. Trap Extractor | -9/Materials | Scanalyzed Datajack | -9/Materials | Scanalyzed EMP Blaster | -9/Materials | Scanalyzed Imp. EM Shotgun | -9/Materials | Scanalyzed Robot Schematics ------------------ M-13 Machinist | -10/Materials | Hacked O-16 Technician | -10/Materials | Hacked Fabricated ------------ Nothing Alien Tech Used ----------------- None Achievements -------------- None Challenges ------------ None RPGLIKE | -11 -10 -10 -9 -9 -9 --------- Run | Scr Mat Min Mat Min Exi Levels Raised 6 | . 2 1 3 . . XP Earned 13321 | 3000 3267 1583 4171 950 350 XP Spent 11975 | 2900 2700 1730 4600 . 45 Upgrades 24 | 10 3 6 4 . 1 Power Slot 1 | . . . 1 . . Propulsion Slot 2 | 1 1 . . . . Utility Slot 5 | 1 2 . 2 . . Weapon Slot 2 | 1 . 1 . . . Core Integrity 3 | . . 2 . . 1 Heat Dissipation 2 | . . 2 . . . Mass Support 1 | 1 . . . . . Inventory Capacity 4 | 2 . 1 1 . . Sight Range 1 | 1 . . . . . Terrain Scan Density 1 | 1 . . . . . Hack Attack % 1 | 1 . . . . . Hack Defense % 1 | 1 . . . . . Protomatter Created 559 | . 301 . 162 59 37 Integrity Restored 1431 | . 466 135 753 77 . Core 1018 | . 323 135 530 30 . Parts 413 | . 143 . 223 47 . Protomatter Decayed 268 | . 95 . . 165 8 Game ------ Seed BiocellRestorationFirepult Manual? 0 Play Time 00:41:50 Cumulative 351.5 hours Start 2020.10.14 @ 18:10:50 End 2020.10.14 @ 18:51:02 Sessions 1 Manual Loads 0 Difficulty Rogue Special Mode Winter2019/RPGLIKE Game No. 139 Rogue 139 Adventurer 0 Explorer 0 Win Type - Total 4 Types 3/0/0/1/0/0/0/0/0 Lore% 87 Gallery% 92 Achievement% 73 Wizard Run 0 Options --------- ASCII 0 Keyboard 0 Movement Numpad Keybinds 0 Fullscreen 1 Font 18/SmallcapsGlow Map View 76x50 Tactical HUD 1 Map Filters NONE Filters NONE Steam 1 RUN: c232d1f3-5a82-40ef-87c1-69af32e740af